Cogmind - Beta 16 @@@ ROGUE MODE // 2025.12.19 @ 20:30:17 Player: obl-vn Result: Destroyed by 79-09F(R) with Subdweller Laser Performance ------------- Evolutions (0) 0 Regions Visited (2) 400 Robots Destroyed (22) 110 Value Destroyed (673) 673 Prototype IDs (12) 240 Alien Tech Used (0) 0 Bonus (0) 0 TOTAL SCORE: 1423 Bonus ------- None Cogmind --------- Core Integrity 0/250 Matter 14/300 Energy 125/125 System Corruption 0% Temperature Cool (6) Movement Treading (560) Ox4 Location -10/Subcaves Parts ------- > --- POWER (1) -------- Light Ion Engine > --- PROPULSION (2) --- Spiked Treads > --- UTILITY (2) ------ Huge Storage Unit Makeshift Light Armor Plating > --- WEAPON (2) ------- Battle Cannon Battle Cannon > --- INVENTORY (25) --- Meta Core Wheel Gun Armor Scrap Shield Subdweller Beam Cannon Barrage Gun Grenade Launcher Multitool SUBCON Basin (Full) Peak State ------------ > --- POWER ------------ Light Ion Engine > --- PROPULSION ------- Spiked Treads Wheel > --- UTILITY ---------- Huge Storage Unit Makeshift Light Armor Plating > --- WEAPON ----------- Battle Cannon Battle Cannon > --- INVENTORY -------- Meta Core Light Treads Wheel Gun Armor Scrap Shield Subdweller Beam Cannon Barrage Gun Grenade Launcher Multitool SUBCON Basin [Rating: 34] Favorites ----------- Power Light Ion Engine Engine Light Ion Engine Propulsion Wheel Treads Light Treads Wheel Wheel Utility Huge Storage Unit Device Subdweller Optics Storage Huge Storage Unit Protection Makeshift Light Armor Plating Weapon Battle Cannon Energy Cannon Subdweller Beam Cannon Ballistic Gun Assault Rifle Ballistic Cannon Battle Cannon Launcher Grenade Launcher Impact Weapon Hammer Build | -11 -10 -10 ------- Run | Yrd Mat Sub Slots Evolved . | . . . Power . | . . . Propulsion . | . . . Utility . | . . . Weapon . | . . . Parts Attached 22 | 4 5 13 Power 2 | . 1 1 Engine 2 | . 1 1 Core . | . . . Reactor . | . . . Propulsion 6 | 2 2 2 Treads 3 | 2 . 1 Leg . | . . . Wheel 3 | . 2 1 Hover . | . . . Flight . | . . . Utility 5 | . 2 3 Device 2 | . . 2 Storage 1 | . 1 . Processor . | . . . Hackware . | . . . Protection 2 | . 1 1 Artifact . | . . . Weapon 9 | 2 . 7 Energy Gun . | . . . Energy Cannon 1 | . . 1 Ballistic Gun 3 | 2 . 1 Ballistic Cannon 3 | . . 3 Launcher 1 | . . 1 Special Weapon . | . . . Impact Weapon 1 | . . 1 Slashing Weapon . | . . . Piercing Weapon . | . . . Special Melee Weapon . | . . . Unidentified Prototypes . | . . . Parts Lost 5 | . . 5 Power 1 | . . 1 Propulsion 2 | . . 2 Utility 1 | . . 1 Weapon 1 | . . 1 Highest Loss Streak 2 | . . 2 To Critical Strikes 1 | . . 1 Average Backups 10 | 2 5 11 Power 1 | . 1 1 Propulsion 2 | . . 2 Utility 1 | . . 2 Weapon 4 | . 1 4 Tool/Special . | . . . Unused Backups 16 | . 1 15 Power 2 | . . 2 Propulsion 2 | . . 2 Utility 5 | . 1 4 Weapon 5 | . . 5 Tool/Special 2 | . . 2 Average Slot Usage (%) 96 | . 77 98 Engine 12 | . 3 13 Treads 2 | . 21 . Wheel 25 | . 6 27 Device 5 | . . 5 Storage 13 | . 5 14 Protection 7 | . 12 7 Energy Cannon 5 | . . 6 Ballistic Gun 7 | . 28 4 Ballistic Cannon 14 | . . 15 Peak Build Rating 34 | 4 7 34 Average Rating 22 | 2 5 24 On Entrance 3 | . 4 7 Avg Prop Armor Cover (%) 20 | 26 20 . Naked Turns . | . . . Heaviest Build 102 | 3 91 102 Greatest Support 40 | 3 40 40 Greatest Overweight (x) 9 | . 8 9 Average Overweight (x) 3 | . 1 4 Largest Inventory Capacity 25 | 5 25 25 Average Capacity 23 | 5 12 25 Most Carried 25 | 4 9 25 Average Carried 20 | 2 5 22 Final Capacity 25 | 5 25 25 Final Carried 24 | 4 9 24 Class Distribution -------------------- 100% | Mutant Dominant Class ---------------- Mutant | -10/Materials Mutant | -10/Subcaves Resources | -11 -10 -10 ----------- Run | Yrd Mat Sub Matter Collected 1043 | 240 150 653 Remotely . | . . . Salvage Created 732 | . 226 506 Parts 60 | . 19 41 Haulers Intercepted . | . . . Recyclers Shooed . | . . . Parts Field Recycled . | . . . Retrieved Matter . | . . . Parts Self-Destructed 7 | . . 7 Prevented . | . . . Parts Restored . | . . . Kills | -11 -10 -10 ------- Run | Yrd Mat Sub Combat Hostiles Destroyed 18 | . 5 13 Guns 5 | . 5 . Cannons 13 | . . 13 Classes Destroyed 8 | . 5 3 Builder 1 | . 1 . Mechanic 1 | . 1 . Watcher 2 | . 2 . Swarmer 3 | . 3 . Grunt 2 | . 2 . Sentry 1 | . . 1 Artisan 1 | . . 1 Subdweller 12 | . . 12 Best Kill Streak 3 | . 3 2 Combat Bots Only 3 | . 3 2 Max Kills in Single Turn 1 | . 1 1 Gunslinging . | . . . Exploded . | . . . Melee . | . . . Uniques/NPCs Destroyed . | . . . Combat | -11 -10 -10 -------- Run | Yrd Mat Sub Hostile Shots Fired 81 | . 21 60 Missed 22 | . 6 16 Hits 59 | . 15 44 Projectile 59 | . 15 44 AOE 2 | . . 2 Critical Strikes 1 | . . 1 Damage Taken 1220 | . 130 1090 Core 259 | . 6 253 Absorbed by Shields . | . . . Core Remaining (%) 100 | 100 . . Volleys Fired 136 | . 20 116 Largest 2 | . 2 2 Hottest 120 | . 40 120 Shots Fired 194 | . 40 154 Gun 45 | . 40 5 Cannon 147 | . . 147 Launcher 2 | . . 2 Special . | . . . Kinetic 143 | . 40 103 Thermal 49 | . . 49 Explosive 2 | . . 2 Electromagnetic . | . . . Robot Hit Streak 17 | . 13 17 Robot Miss Streak 4 | . 4 2 Penetration Max . | . . . Secondary Targets 1 | . 1 . Max Gunslinging Chain 1 | . 1 . Shots Hit Robots 80 | . 24 56 Core Hits 28 | . 12 16 Critical Kills 1 | . . 1 Critical Parts Destroyed . | . . . Critical Strikes 5 | . . 5 Destroy 4 | . . 4 Blast 1 | . . 1 Melee Attacks 8 | . . 8 Impact 8 | . . 8 Slashing . | . . . Piercing . | . . . Sneak Attacks 2 | . . 2 Combat Hostiles . | . . . Follow-up Attacks . | . . . Damage Inflicted 1704 | . 263 1441 Guns 307 | . 263 44 Cannons 1258 | . . 1258 Explosions 94 | . . 94 Melee 40 | . . 40 Ramming 5 | . . 5 Kinetic 903 | . 263 640 Thermal 662 | . . 662 Explosive 94 | . . 94 Electromagnetic . | . . . Impact 40 | . . 40 Slashing . | . . . Piercing . | . . . Highest Corruption . | . . . Average Corruption . | . . . Corruption Purged . | . . . Corruption Blocked . | . . . Overload Shots . | . . . Overflow Damage . | . . . Projectiles . | . . . Explosions . | . . . Melee . | . . . Knockbacks 6 | . . 6 Impact . | . . . Kinetic 6 | . . 6 Secondary . | . . . Self-Inflicted Damage . | . . . Shots . | . . . Rammed 1 | . . 1 Targets Rammed 1 | . . 1 Kicked . | . . . Crushed . | . . . Highest Temperature 30 | . 18 30 Average Temperature 14 | . 6 17 Received Heat Transfer 189 | . 30 159 Siege Activations . | . . . Martial Activations . | . . . Shielding Activations . | . . . Robots Disrupted . | . . . Combat Hostiles . | . . . Robots Corrupted . | . . . Combat Hostiles . | . . . Parts Fried . | . . . Impact Corruptions . | . . . Robots Melted . | . . . Combat Hostiles . | . . . Parts Melted 1 | . . 1 Heat Transferred 888 | . . 888 Parts Sabotaged . | . . . Parts Stolen . | . . . Parts Stripped . | . . . Power Chain Reactions . | . . . Alert | -11 -10 -10 ------- Run | Yrd Mat Sub Maximum Alert Level . | . . . Low Security (%) 100 | 100 100 . Level 1 . | . . . Level 2 . | . . . Level 3 . | . . . Level 4 . | . . . Level 5 . | . . . High Security . | . . . Max Security . | . . . Peak Influence 104 | . 104 . Initial . | . . . Average 33 | . 35 . Influence Increases 245 | . 195 50 Destroy 0b10 Robot/C 120 | . 100 20 Destroy 0b10 Robot/NC 20 | . 20 . Destroy Leader 24 | . 24 . Successful Hack 21 | . 21 . Lose Combat Pursuer 60 | . 30 30 Influence Decreases 245 | . 186 59 Entered New Map 5 | . . 5 Time Decay 240 | . 186 54 Squads Dispatched 1 | . 1 . Investigation . | . . . Extermination . | . . . Reinforcement 1 | . 1 . Assault . | . . . Garrison . | . . . Intercept . | . . . Searches Triggered . | . . . Construction Impeded . | . . . Haulers Reinforced . | . . . Active Scanning Responses . | . . . Cargo Convoy Interrupts . | . . . Stealth | -11 -10 -10 --------- Run | Yrd Mat Sub Distress Signals . | . . . Communications Jammed . | . . . Distress Signals . | . . . Times Spotted 27 | . 10 17 Peak Tracking Total 3 | . 3 2 Tactical Retreats 4 | . 2 2 Traps | -11 -10 -10 ------- Run | Yrd Mat Sub Traps Triggered 3 | . . 3 Indirectly . | . . . Trap Hack Attempts . | . . . Triggered . | . . . Disarmed . | . . . Reprogrammed . | . . . Reused . | . . . Traps Extracted . | . . . Installed . | . . . Triggered . | . . . Machines | -11 -10 -10 ---------- Run | Yrd Mat Sub Machines Disabled 1 | . . 1 Max in Single Turn 1 | . . 1 Machines Repaired . | . . . Machines Dismantled . | . . . Machines Sabotaged . | . . . Overloaded Fab Kills . | . . . Hacking | -11 -10 -10 --------- Run | Yrd Mat Sub Machines Accessed 10 | . 6 4 Terminals 4 | . 4 . Fabricators . | . . . Repair Stations . | . . . Recycling Units 2 | . 2 . Scanalyzers . | . . . Garrison Access . | . . . Total Hacks 20 | . 12 8 Successful 19 | . 11 8 Failed 1 | . 1 . Catastrophic . | . . . Database Lockouts . | . . . Manual 10 | . 10 . Terminals 9 | . 9 . Fabricators . | . . . Repair Stations . | . . . Recycling Units 3 | . 3 . Scanalyzers . | . . . Garrison Access . | . . . Terminal Hacks 10 | . 2 8 Record 5 | . . 5 Open Door 1 | . . 1 Locate Traps 1 | . 1 . Zone Layout 1 | . 1 . Proto ID Catalog 1 | . . 1 Release Object 1 | . . 1 Fabricator Hacks . | . . . Repair Station Hacks . | . . . Recycling Unit Hacks . | . . . Scanalyzer . | . . . Garrison Access Hacks . | . . . Unauthorized Hacks 9 | . 9 . Terminals 7 | . 7 . Track 1 | . 1 . Botnet 1 | . 1 . Disrupt 1 | . 1 . Skim 4 | . 4 . Fabricators . | . . . Repair Stations . | . . . Recycling Units 2 | . 2 . Reject 2 | . 2 . Scanalyzers . | . . . Garrison Access . | . . . Data Cores Recovered . | . . . Used . | . . . Hacking Detections 5 | . 5 . Full Trace Events . | . . . Feedback Events . | . . . Feedback Blocked . | . . . Robot Schematics Acquired . | . . . Robots Built . | . . . Authchips . | . . . Time . | . . . Total Robot Build Rating . | . . . Part Schematics Acquired . | . . . Parts Built . | . . . Authchips . | . . . Time . | . . . Total Part Build Rating . | . . . Part Studies Acquired . | . . . Parts Repaired . | . . . Time . | . . . Parts Recycled . | . . . Recycled Matter . | . . . Retrieved Matter . | . . . Retrieved Components . | . . . Parts Scanalyzed . | . . . Part Schematics Acquired . | . . . Parts Damaged . | . . . Bothacking | -11 -10 -10 ------------ Run | Yrd Mat Sub Used RIF Installer . | . . . Robots Hacked . | . . . Non-combat . | . . . Combat . | . . . Robot Hacks Applied . | . . . Relay Couplers Released . | . . . Fabnet Peak Effective % . | . . . Robots Rewired . | . . . Allies Hacked . | . . . Hacks Repelled . | . . . Allies | -11 -10 -10 -------- Run | Yrd Mat Sub Total Allies . | . . . Largest Group . | . . . Highest-Rated Group . | . . . Highest-Rated Ally . | . . . Total Orders . | . . . Ally Attacks . | . . . Total Damage . | . . . Kills . | . . . Allies Corrupted . | . . . Allies Melted . | . . . Intel | -11 -10 -10 ------- Run | Yrd Mat Sub Active Infowar (turns) 549 | . . 549 Optics 549 | . . 549 Robot Analysis Total . | . . . Derelict Logs Recovered 3 | . . 3 Drone Launches . | . . . Drone Recoveries . | . . . Exploration | -11 -10 -10 ------------- Run | Yrd Mat Sub Turns Passed 5148 | 38 499 4611 Spaces Moved 3272 | 53 371 2848 Core 322 | 53 269 . Treads 25 | . 21 4 Legs . | . . . Wheels 2925 | . 81 2844 Hover . | . . . Flight . | . . . Fastest Speed 50 | 50 50 140 Average Speed 137 | 50 107 142 Slowest Speed 340 | 50 200 340 Overloaded Moves . | . . . Propulsion Burnouts . | . . . Robots Hopped . | . . . Potential Cave-ins . | . . . Cave-ins Triggered . | . . . Exploration Rate (%) 51 | 3 56 96 Regions Visited 2 Branch Regions 1 Pre-discovered Areas 1 | . . 1 Known Exits Taken . | . . . Unknown Exits Taken 2 | 1 1 . Scrap Searched 3 | . . 3 Spaces Dug 9 | . . 9 Terrain Destroyed 49 | . . 49 Melee 1 | . . 1 Projectile 29 | . . 29 AOE 19 | . . 19 Terrain Rammed . | . . . Walls Destroyed . | . . . Machines Disabled . | . . . Actions | -11 -10 -10 --------- Run | Yrd Mat Sub Total 3711 | 64 436 3211 Wait 174 | . 26 148 Move 3270 | 52 370 2848 Hop . | . . . Pick Up 42 | 8 9 25 Fast Attach 3 | . 1 2 Attach 13 | 4 4 5 Detach 2 | . 2 . Swap 37 | . 2 35 Drop 25 | . 2 23 Fire 136 | . 20 116 Melee 8 | . . 8 Ram . | . . . Kick . | . . . Crush 1 | . . 1 Escape Stasis . | . . . Rewire . | . . . Trap . | . . . Miscellaneous . | . . . Route ------- -11/Scrapyard -10/Materials (discovered 4 exits: [*Mat x2] / [*Min] / *Sub) -10/Subcaves (discovered 2 exits: [*Mat x2]) History --------- Turn | Location | Event 12 | -11/Scrapyard | Discovered new exit (range 15) 39 | -11/Scrapyard | Entered Materials 67 | -10/Materials | Discovered new exit (range 12) 141 | -10/Materials | Discovered new exit (range 15) 274 | -10/Materials | Discovered new exit (range 12) 302 | -10/Materials | Build established: Mutant 329 | -10/Materials | Discovered new exit (range 9) 538 | -10/Materials | Entered Subcaves 552 | -10/Subcaves | Discovered new exit (range 11) 620 | -10/Subcaves | Learned location of 1 exit from Materials 889 | -10/Subcaves | Curiously followed by a Cobbler waking with a query about "LVR3C" 1176 | -10/Subcaves | A swath of the cavern ceiling suddenly collapsed 1544 | -10/Subcaves | Shifting Twisted Machinery released Battle Rifle 1544 | -10/Subcaves | Shifting Twisted Machinery released Slug Cannon 1672 | -10/Subcaves | A swath of the cavern ceiling suddenly collapsed 1813 | -10/Subcaves | Shifting Twisted Machinery released Battle Cannon 1922 | -10/Subcaves | Discovered new exit (range 6) 2038 | -10/Subcaves | Visited Clippyterm 2042 | -10/Subcaves | Learned location of 1 exit from Materials 2044 | -10/Subcaves | Learned location of Section 7 (-3) 2044 | -10/Subcaves | Learned Research security intel 2177 | -10/Subcaves | Learned Materials terminal intel 2250 | -10/Subcaves | Found SUBCON Basin 2532 | -10/Subcaves | Disturbed a concealed Subdweller 3229 | -10/Subcaves | Shifting Twisted Machinery released Shrapnel Trap 3233 | -10/Subcaves | A Subdweller sparked back to life 3263 | -10/Subcaves | Found Prototype Protection 3336 | -10/Subcaves | Core integrity fell below 50% 3445 | -10/Subcaves | Visited 4L-MR0's lab 3456 | -10/Subcaves | Identified Gun Armor 3460 | -10/Subcaves | Found Meta Core 3548 | -10/Subcaves | Core integrity fell below 20% 5121 | -10/Subcaves | Ambushed by Subdweller buried in earth 5149 | -10/Subcaves | Destroyed by 79-09F(R) with Subdweller Laser Last Messages --------------- 04102_ Y-45 Defender destroyed. 04105_ Subatomizers dissect the Lgt. Treads. 04108_ Lgt. Treads fries itself beyond repair. 04108_ Acquired 48 matter. 04110_ Acquired 5 matter. 04360_ Acquired 3 matter. 04363_ Acquired 1 matter. 04364_ Acquired 8 matter. 04388_ Acquired 76 matter. 04394_ Acquired 31 matter. 04837_ Acquired 2 matter. 04840_ Acquired 14 matter. 04844_ Acquired 1 matter. 05122_ 79-09F(R): "FREEEEDUMB!" 05123_ Wheel destroyed. 05124_ 4U-XJY(R): "SLEEPOVER!" 05137_ 79-09F(R) knocked back. 05147_ Slammed into 79-09F(R). 05148_ Critical hit (Destroy). 05148_ Lgt. Treads destroyed. Map ----- +----------------------------------------------------+ | ?????????????????????????????????????????????????? | | ?????????????????????????????????????????????????? | | ?????????????????????????????????????????????????? | | ?????????????????????????????????????????????????? | | ?????????????????????????????????????????????????? | | ?????????????????????????????????????????????????? | | ?????????????????????????????????????????????????? | | ?????????????????????????????????????????????????? | | ?????????????????????????????????????????????????? | | ?????????????????????????????????????????????????? | | ?????????????????????????????????????????????????? | | ?????????????????????????????????????????????????? | | ?????????????????????????????????????????????????? | | ?????????????????????????????????????????????????? | | ????????????????????????????????????????????###??? | | ???????????????????????????????????????????## ##?? | | ??????????????????????????????????????????## ##? | | ????????????????????????????????????????### #? | | ???????????????????????????????????????## #? | | ???????????????????????????##???????#### ## | | ?????????????????????????### ######## # | | ?????????????????#??##???# ### | | #???????????????#? # #??## ###?## | | #####???????????# $# # ####### ## ###???# | | ##???????????# R %### ####### ##?# | | #???????????# # %%R@ ##????# #?## | | #????###?????# # #?##### #### | | #??????# ##????# ????## ### ## | | #???????# #???????????### ;;# ## | | #????#### #???????????### #### ## ### | | ##???## ## #?####?????? ## #### #####?# | | ##?### #? ##????# # #?###?# | | ### # ### #???# ## ### ### | | #??## ### ## | | #### ## | | ## ### ### | | ###### ## #?## | | #???### #????## #??#### | | #?????## ##????# # #?????? | | ##??????## #????# # ####?????? | | ##????????# #???## #????????? | | ##?????????## ### ##??# #????????? | | ##??????????####?## ##?## ### ##???????? | | #????????????????## #??#?#??## #???????? | | ##?????????????????# #????????## #???????? | | # ##?????????????????# ##????????## #???????? | | # ##???????????????## ####??????# #???????? | | ##??????????????# ######?# ##???????? | | #??????????????# ### ##???????? | | #??????????????# ## ##??????? | +----------------------------------------------------+ Best States ------------- Heat Dissipation 25 Energy Generation 10 Energy Capacity 250 Matter Stores 300 Matter Capacity 300 Sight Range 21 Terrain Scan Density 10 Armor Coverage 150 Evasion (%) 50 Recoil Reduction 2 Item Schematics ----------------- None Robot Schematics ------------------ None Fabricated ------------ Nothing Repaired ---------- Nothing Studied --------- None Alien Tech Used ----------------- None Achievements -------------- Physics Hates This One Trick Challenges ------------ None Game ------ Seed ZeronetTrapFlightbrick Manual? 0 Play Time 00:34:20 Cumulative 71.0 hours Start 2025.12.19 @ 19:53:57 End 2025.12.19 @ 20:30:17 Sessions 1 Manual Loads 0 Difficulty Rogue Special Mode None Game No. 57 Rogue 57 Adventurer 0 Explorer 0 Win Type - Total 1 Types 0/0/0/1/0/0/0/0/0/0 Lore% 35 Gallery% 42 Achievement% 36 Wizard Run 0 Options --------- Layout 1 ASCII 0 Keyboard 0 Movement Mouse Keybinds 0 Fullscreen 1 Font 32/SmallcapsGlow Map View 50x35 Zoom Use 0% Tactical HUD 1 Map Filters NONE Filters NONE Steam 1 RUN: 65a3222d-2b59-4e17-843b-07b85f164f81